bitfinex-derivatives/quotes_BTCF0:USTF0_20250809
["timestamp","ask_amount","ask_price","bid_price","bid_amount"]
[1754747024239,0.4660955,117060.0,117050.0,1.21763685]
[1754747024637,0.4660955,117060.0,117050.0,1.10998206]
[1754747024839,0.4660955,117060.0,117050.0,1.21763229]
[1754747025239,0.4660955,117060.0,117050.0,1.10998206]
[1754747025439,0.4660955,117060.0,117050.0,1.21762839]
[1754747025735,0.4660955,117060.0,117050.0,1.12158425]
[1754747025936,0.4660955,117060.0,117050.0,1.12258425]
[1754747026135,0.4650955,117060.0,117050.0,1.12258425]
[1754747027040,0.4640955,117060.0,117050.0,1.12258425]
[1754747027344,0.4640955,117060.0,117050.0,1.23022688]
[1754747027842,0.4650955,117060.0,117050.0,1.12358425]
[1754747028340,0.4650955,117060.0,117050.0,0.46120799]
[1754747028538,0.4650955,117060.0,117050.0,1.23122513]
[1754747029733,0.4650955,117060.0,117050.0,1.12358425]
[1754747032646,0.4180055,117060.0,117050.0,1.12358425]
[1754747032848,0.4504155,117060.0,117050.0,1.12358425]
[1754747033145,0.4650955,117060.0,117050.0,1.12358425]
[1754747035346,0.4650955,117060.0,117050.0,1.23122066]
[1754747040053,0.4650955,117060.0,117050.0,1.12358425]
[1754747040847,0.4650955,117060.0,117050.0,1.23122294]
[1754747041656,0.4650955,117060.0,117050.0,1.12358425]
[1754747044259,0.4650955,117060.0,117050.0,0.46120799]
[1754747044458,0.4650955,117060.0,117050.0,1.23122294]
[1754747044962,0.4650955,117060.0,117050.0,1.23123095]
[1754747048958,0.4650955,117060.0,117050.0,1.12358425]
[1754747049768,0.3468955,117060.0,117050.0,1.12305425]
[1754747049964,0.4017755,117060.0,117050.0,1.12358425]
[1754747050159,0.4638755,117060.0,117050.0,1.12358425]
[1754747050359,0.4638755,117060.0,117050.0,1.23125077]
[1754747050765,0.4638755,117060.0,117050.0,1.12358425]
[1754747051964,0.4638755,117060.0,117050.0,1.23125077]
[1754747052361,0.4638755,117060.0,117050.0,1.12358425]
[1754747053969,0.3784498,117060.0,117050.0,1.12358425]
[1754747054371,0.3784498,117060.0,117050.0,1.23125077]
[1754747054967,0.3784498,117060.0,117050.0,1.23072077]
[1754747055270,0.3784498,117060.0,117050.0,1.12305425]
[1754747055472,0.3784498,117060.0,117050.0,1.91677425]
[1754747056169,0.3784498,117060.0,117050.0,2.07068393]
[1754747056564,0.3784498,117060.0,117050.0,1.7394958]
[1754747056767,0.3784498,117060.0,117050.0,2.07068393]
[1754747058473,0.3784498,117060.0,117050.0,1.40830767]
[1754747058673,0.3784498,117060.0,117050.0,2.07068393]
[1754747060377,0.3784498,117060.0,117050.0,1.91677425]
[1754747060975,0.3784498,117060.0,117050.0,2.02436672]
[1754747063072,0.3784498,117060.0,117050.0,2.02351672]
[1754747063978,0.70963793,117060.0,117050.0,1.24570279]
[1754747064479,1.07043793,117060.0,117050.0,1.24570279]
[1754747065171,0.70963793,117060.0,117050.0,1.24570279]
[1754747065375,1.07043793,117060.0,117050.0,1.24570279]
[1754747065577,0.70963793,117060.0,117050.0,1.33112869]
[1754747065984,0.3784498,117060.0,117050.0,1.33112869]
[1754747066280,0.70963793,117060.0,117050.0,1.33112869]
[1754747067580,0.3784498,117060.0,117050.0,1.33112869]
[1754747073383,0.3784498,117060.0,117050.0,1.69192869]
[1754747073877,0.3784498,117060.0,117050.0,1.33112869]
[1754747074768,0.3784498,117060.0,117050.0,1.00079056]
[1754747074981,0.3784498,117060.0,117050.0,1.33197869]
[1754747078382,0.3784498,117060.0,117050.0,1.22438622]
[1754747080584,0.3784498,117060.0,117050.0,0.89319809]
[1754747080785,0.3784498,117060.0,117050.0,0.80777219]
[1754747081079,0.70963793,117060.0,117050.0,1.13840032]
[1754747081482,0.70963793,117060.0,117050.0,1.13751032]
[1754747083580,0.70963793,117060.0,117050.0,1.24510279]
[1754747084882,0.70963793,117060.0,117050.0,0.45323279]
[1754747085082,0.70963793,117060.0,117050.0,1.24583279]
[1754747086077,0.70963793,117060.0,117050.0,1.24579279]
[1754747086479,1.07043793,117060.0,117050.0,1.24575279]
[1754747087383,1.07043793,117060.0,117050.0,0.45323279]
[1754747087578,1.07043793,117060.0,117050.0,1.24571279]
[1754747090394,1.07043793,117060.0,117050.0,0.91452466]
[1754747090586,1.07043793,117060.0,117050.0,1.24571279]
[1754747097400,1.08971627,117060.0,117050.0,1.24571279]
[1754747098104,1.08971627,117060.0,117050.0,0.91452466]
[1754747098400,1.08971627,117060.0,117050.0,0.91416466]
[1754747098699,1.08971627,117060.0,117050.0,1.24535279]
[1754747099394,0.75852814,117060.0,117050.0,1.24535279]
[1754747099594,1.08971627,117060.0,117050.0,1.24535279]
[1754747100497,0.2041232,117040.0,117030.0,0.76095844]
[1754747100695,0.53531133,117040.0,117030.0,1.48487813]
[1754747101602,0.2041232,117040.0,117030.0,1.57084863]
[1754747102190,0.1900732,117040.0,117030.0,1.2391305]
[1754747102396,0.2041232,117040.0,117030.0,1.58107595]
[1754747102897,0.2041232,117040.0,117030.0,1.58460595]
[1754747103403,0.2051232,117040.0,117030.0,1.58860595]
[1754747103998,0.2051232,117040.0,117030.0,1.50316545]
[1754747104198,0.1580632,117040.0,117030.0,1.50263545]
[1754747104402,0.2051232,117040.0,117030.0,1.50316545]
[1754747104601,0.2051232,117040.0,117030.0,1.50016545]
[1754747105296,0.2051232,117040.0,117030.0,1.58560595]
[1754747107399,0.2051232,117040.0,117030.0,1.58360595]
[1754747107701,0.22407333,117040.0,117030.0,1.91479408]
[1754747108408,0.22407333,117040.0,117030.0,2.02228093]
[1754747111910,0.22407333,117040.0,117030.0,1.6055723]
[1754747113911,0.22407333,117040.0,117030.0,1.6910128]
[1754747114813,0.22407333,117040.0,117030.0,1.35982467]
[1754747115009,0.22407333,117040.0,117030.0,1.6910128]
[1754747116116,0.22407333,117040.0,117030.0,1.3302128]
[1754747117813,0.22407333,117040.0,117030.0,0.99902467]
[1754747118012,0.22407333,117040.0,117030.0,1.3302128]
[1754747119012,0.22407333,117040.0,117030.0,1.34767661]
[1754747119914,0.22407333,117040.0,117030.0,1.70847661]
[1754747120113,0.22407333,117040.0,117030.0,1.34767661]
[1754747120707,0.22407333,117040.0,117030.0,1.70847661]
[1754747121717,0.22407333,117040.0,117030.0,1.70827661]
[1754747123320,0.22407333,117040.0,117030.0,1.37708848]
[1754747123523,0.22407333,117040.0,117030.0,1.70827661]
[1754747124513,0.22407333,117040.0,117030.0,2.03946474]
[1754747124715,0.22407333,117040.0,117030.0,1.70827661]
[1754747127424,0.22407333,117040.0,117030.0,1.37708848]
[1754747127630,0.22407333,117040.0,117030.0,1.70827661]
[1754747129412,0.22407333,117040.0,117030.0,2.03946474]
[1754747129413,0.10538333,117040.0,117030.0,2.03946474]
[1754747129924,0.10485333,117040.0,117030.0,1.93197789]
[1754747131226,0.10485333,117040.0,117030.0,1.26960163]
[1754747131427,0.54350146,117040.0,117030.0,1.26960133]
[1754747131621,0.55829146,117040.0,117030.0,1.60078946]
[1754747131823,0.55829146,117040.0,117030.0,1.60001946]
[1754747132232,0.55829146,117040.0,117030.0,1.58255565]
[1754747132520,0.55829146,117040.0,117030.0,1.22175565]
[1754747136126,0.55829146,117040.0,117030.0,1.13631545]
[1754747136820,0.55829146,117040.0,117030.0,0.34483545]
[1754747137020,0.55829146,117040.0,117030.0,1.13631545]
[1754747137216,0.22710333,117040.0,117030.0,0.80512732]
[1754747137423,0.55829146,117040.0,117030.0,1.13631545]
[1754747139627,0.22710333,117040.0,117030.0,1.24398546]
[1754747139929,0.55829146,117040.0,117030.0,1.24398546]
[1754747142227,0.88947959,117040.0,117030.0,0.91279733]
[1754747142431,1.25027959,117040.0,117030.0,0.10967001]
[1754747142626,0.58790333,117040.0,117030.0,0.90143001]
[1754747142826,1.25027959,117040.0,117030.0,0.79376]
[1754747143232,1.25027959,117040.0,117030.0,0.002]
[1754747143430,1.25027959,117040.0,117030.0,0.7938]
[1754747144036,1.26054958,117040.0,117030.0,0.7938]
[1754747144234,0.2050702,117030.0,117020.0,0.89959001]
[1754747144536,0.89705833,117030.0,117020.0,0.79192]
[1754747145738,1.22824646,117030.0,117020.0,0.7585645]
[1754747145941,1.22824646,117030.0,117020.0,0.6964241]
[1754747146132,0.0854548,117010.0,117000.0,0.33118813]
[1754747146438,0.2050921,117000.0,116990.0,0.5317345]
[1754747146734,0.2050921,117000.0,116990.0,1.3232545]
[1754747147539,0.1561021,117000.0,116990.0,1.2377894]
[1754747147836,0.53628023,117000.0,116990.0,1.56897753]
[1754747148136,0.2050921,117000.0,116990.0,1.56897753]
[1754747148337,0.2060921,117000.0,116990.0,1.56997753]
[1754747148538,0.2060921,117000.0,116990.0,1.67764754]
[1754747148731,0.2060921,117000.0,116990.0,1.26103001]
[1754747149038,0.2060921,117000.0,116990.0,1.67768754]
[1754747149338,0.2060921,117000.0,116990.0,1.68809327]
[1754747149939,0.1913521,117000.0,116990.0,1.68809327]
[1754747150333,0.1913521,117000.0,116990.0,1.32729327]
[1754747150638,0.1913521,117000.0,116990.0,1.79886249]
[1754747150840,0.1106521,117000.0,116990.0,1.80086249]
[1754747153336,0.1106521,117000.0,116990.0,1.35890514]
[1754747153536,0.2060921,117000.0,116990.0,1.44006249]
[1754747153838,0.2060921,117000.0,116990.0,1.35459319]
[1754747154142,0.2060921,117000.0,116990.0,1.80086209]
[1754747154442,0.2060921,117000.0,116990.0,1.44006209]
[1754747155135,0.1913521,117000.0,116990.0,1.80086209]
[1754747156439,0.1913521,117000.0,116990.0,1.71539319]
[1754747156744,0.1913521,117000.0,116990.0,1.80086209]
[1754747157243,0.1913521,117000.0,116990.0,1.27343584]
[1754747157443,0.1913521,117000.0,116990.0,1.71539319]
[1754747158046,0.2060921,117000.0,116990.0,1.71539319]
[1754747158230,0.2060921,117000.0,116990.0,1.80086209]
[1754747158542,0.1913521,117000.0,116990.0,1.80086209]
[1754747158838,0.1913521,117000.0,116990.0,1.33239208]
[1754747159143,0.1913521,117000.0,116990.0,1.60772318]
[1754747159343,0.2060921,117000.0,116990.0,0.80496583]
[1754747159546,0.64804945,117000.0,116990.0,0.80496583]
[1754747159841,0.2060921,117000.0,116990.0,0.80496583]
[1754747160440,0.64804945,117000.0,116990.0,0.82992583]
[1754747160940,0.5668921,117000.0,116990.0,0.81952]
[1754747161138,1.00884945,117000.0,116990.0,0.81952]
[1754747161441,1.00884945,117000.0,116990.0,0.81984]
[1754747161640,0.64804945,117000.0,116990.0,0.003]
[1754747161837,0.5668921,117000.0,116990.0,0.82004]
[1754747162144,1.00884945,117000.0,116990.0,0.82004]
[1754747162337,1.00884945,117000.0,116990.0,0.003]
[1754747162538,1.00884945,117000.0,116990.0,0.8171601]
[1754747162743,1.00884945,117000.0,116990.0,0.7538074]
[1754747162942,1.00884945,117000.0,116990.0,0.6711747]
[1754747163145,0.5668921,117000.0,116990.0,0.6337801]
[1754747163347,0.5668921,117000.0,116990.0,0.6108329]
[1754747163945,0.5668921,117000.0,116990.0,1.05279025]
[1754747164245,0.0864621,117000.0,116990.0,1.41359025]
[1754747164644,0.0864621,117000.0,116990.0,1.49905925]
[1754747164844,0.0864621,117000.0,116990.0,1.41359025]
[1754747165240,0.1098421,117000.0,116990.0,1.41359025]
[1754747166242,0.1098421,117000.0,116990.0,1.49905895]
[1754747166844,0.1098421,117000.0,116990.0,0.9716329]
[1754747167045,0.1098421,117000.0,116990.0,1.49905865]
[1754747167448,0.0864621,117000.0,116990.0,1.49905865]
[1754747168444,0.0864621,117000.0,116990.0,1.0571013]
[1754747168739,0.0864621,117000.0,116990.0,1.49905865]
[1754747169636,0.1098421,117000.0,116990.0,1.49905865]
[1754747170647,0.1098421,117000.0,116990.0,1.0571013]
[1754747171049,0.1098421,117000.0,116990.0,1.49905865]
[1754747172346,0.1439921,117000.0,116990.0,1.41359025]
[1754747172553,0.1439921,117000.0,116990.0,1.49905905]
[1754747173151,0.1098421,117000.0,116990.0,1.49905905]
[1754747174153,0.1098421,117000.0,116990.0,1.0571017]
[1754747174350,0.1098421,117000.0,116990.0,1.49905905]
[1754747174750,0.1098421,117000.0,116990.0,1.60672906]
[1754747174952,0.0864621,117000.0,116990.0,1.60672906]
[1754747175153,0.0864621,117000.0,116990.0,1.49905905]
[1754747175653,0.1098421,117000.0,116990.0,1.49905905]
[1754747178358,0.1098421,117000.0,116990.0,1.0571017]
[1754747178761,0.1098421,117000.0,116990.0,1.49905905]
[1754747178962,0.1098421,117000.0,116990.0,1.0571017]
[1754747179154,0.1098421,117000.0,116990.0,1.49905905]
[1754747185755,0.1098421,117000.0,116990.0,1.0571017]
[1754747185951,0.1098421,117000.0,116990.0,1.49905905]
[1754747191166,0.1098421,117000.0,116990.0,1.0571017]
[1754747191366,0.1098421,117000.0,116990.0,1.49905905]
[1754747195169,0.1098421,117000.0,116990.0,1.65296873]
[1754747203162,0.1098421,117000.0,116990.0,1.49905905]
[1754747204774,0.1098421,117000.0,116990.0,1.71996794]
[1754747205378,0.1441321,117000.0,116990.0,1.71996794]
[1754747209879,0.1651921,117000.0,116990.0,1.10913504]
[1754747210377,0.2043721,117000.0,116990.0,1.92345504]
[1754747210681,0.2043721,117000.0,116990.0,1.10913504]
[1754747211178,0.2043721,117000.0,116990.0,1.2603488]
[1754747211381,0.2043721,117000.0,116990.0,1.92321504]
[1754747211980,0.2043721,117000.0,116990.0,2.07712472]
[1754747216685,0.1903121,117000.0,116990.0,2.07712472]
[1754747217687,0.1903121,117000.0,116990.0,1.92321504]
[1754747218489,0.1903121,117000.0,116990.0,2.07712472]
[1754747218883,0.1560221,117000.0,116990.0,2.07712472]
[1754747220692,0.1098421,117000.0,116990.0,2.07712472]
[1754747220990,0.1098421,117000.0,116990.0,1.92321504]
[1754747222489,0.1098421,117000.0,116990.0,2.07712472]
[1754747223092,0.0864621,117000.0,116990.0,2.40855784]
[1754747223286,0.2612755,117010.0,116990.0,2.66495314]
[1754747223487,0.2612755,117010.0,117000.0,1.54827857]
[1754747223790,0.2612755,117010.0,117000.0,1.44056086]
[1754747224195,0.2612755,117010.0,117000.0,1.59447054]
[1754747224690,0.2632755,117010.0,117000.0,1.48368872]
[1754747225196,0.2622755,117010.0,117000.0,1.48368872]
[1754747225394,0.2632755,117010.0,117000.0,1.48468872]
[1754747226192,0.2622755,117010.0,117000.0,1.48468872]
[1754747226391,0.2869155,117010.0,117000.0,1.48468872]
[1754747227092,0.2869155,117010.0,117000.0,1.04292995]
[1754747227285,0.3801855,117010.0,117000.0,1.04292995]
[1754747227491,0.3801855,117010.0,117000.0,1.04392995]
[1754747227694,0.3801855,117010.0,117000.0,0.95846845]
[1754747227991,0.3801855,117010.0,117000.0,0.95946845]
[1754747228198,0.3801855,117010.0,117000.0,0.89102027]
[1754747230606,0.3801855,117010.0,117000.0,0.80555877]
[1754747230803,0.3801855,117010.0,117000.0,0.89102027]
[1754747231107,0.3801855,117010.0,117000.0,0.80555877]
[1754747231406,0.3801855,117010.0,117000.0,0.89102027]
[1754747232802,0.3351055,117010.0,117000.0,0.89102027]
[1754747233006,0.3801855,117010.0,117000.0,0.80555877]
[1754747234808,0.3801855,117010.0,117000.0,0.44475877]
[1754747235003,0.3801855,117010.0,117000.0,0.55236362]
[1754747235207,0.3801855,117010.0,117000.0,0.91316362]
[1754747235906,0.3801855,117010.0,117000.0,0.80555877]
[1754747236808,0.3801855,117010.0,117000.0,0.89102027]
[1754747237410,0.3801855,117010.0,117000.0,0.80555877]
[1754747237709,0.3801855,117010.0,117000.0,0.89102027]
[1754747237910,0.3351055,117010.0,117000.0,0.89102027]
[1754747238110,0.3666655,117010.0,117000.0,0.89102027]
[1754747238304,0.3801855,117010.0,117000.0,0.89102027]
[1754747240414,0.2869155,117010.0,117000.0,0.89102027]
[1754747240813,0.3184755,117010.0,117000.0,0.89102027]
[1754747241714,0.3184755,117010.0,117000.0,1.33277904]
[1754747242412,0.3801855,117010.0,117000.0,0.89102027]
[1754747244716,0.3801855,117010.0,117000.0,1.11202552]
[1754747248625,0.2869155,117010.0,117000.0,1.11202552]
[1754747248810,0.3184755,117010.0,117000.0,1.11202552]
[1754747252321,0.3666655,117010.0,117000.0,1.11202552]
[1754747252526,0.3801855,117010.0,117000.0,1.11202552]
[1754747252724,0.2622755,117010.0,117000.0,1.11202552]
[1754747252921,0.2869155,117010.0,117000.0,1.11202552]
[1754747253521,0.3666655,117010.0,117000.0,1.11202552]
[1754747253720,0.3801855,117010.0,117000.0,1.11202552]
[1754747261336,0.3801855,117010.0,117000.0,1.2659352]
[1754747262039,0.3801855,117010.0,117000.0,1.11202552]
[1754747264542,0.3801855,117010.0,117000.0,1.2659352]
[1754747266442,0.3801855,117010.0,117000.0,0.60317118]
[1754747266641,0.3801855,117010.0,117000.0,1.2659352]
[1754747267042,0.3801855,117010.0,117000.0,2.0724952]
[1754747267844,0.3801855,117010.0,117000.0,2.0725352]
[1754747268447,0.3801855,117010.0,117000.0,1.91862552]
[1754747268647,0.3801855,117010.0,117000.0,1.21974045]
[1754747268847,0.3801855,117010.0,117000.0,2.02638045]
[1754747269147,0.3801855,117010.0,117000.0,1.21974045]
[1754747269348,0.3801855,117010.0,117000.0,2.02634045]
[1754747269942,0.3801855,117010.0,117000.0,1.21974045]
[1754747270143,0.3801855,117010.0,117000.0,2.02626045]
[1754747270342,0.3801855,117010.0,117000.0,1.91854552]
[1754747271444,0.3801855,117010.0,117000.0,1.91754552]
[1754747272344,0.3801855,117010.0,117000.0,2.02526045]
[1754747273250,0.3811855,117010.0,117000.0,2.02426045]
[1754747273849,0.3811855,117010.0,117000.0,1.91654552]
[1754747276950,0.3811855,117010.0,117000.0,1.2537815]
[1754747277153,0.3811855,117010.0,117000.0,1.91654552]
[1754747277652,0.3811855,117010.0,117000.0,2.02425457]
[1754747278053,0.2867455,117010.0,117000.0,2.02425457]
[1754747279055,0.3160755,117010.0,117000.0,2.02425457]
[1754747279451,0.2818455,117010.0,117000.0,2.02425457]
[1754747279658,0.2818455,117010.0,117000.0,1.91654552]
[1754747281359,0.2818455,117010.0,117000.0,2.24792753]
[1754747281551,0.2583755,117010.0,117000.0,2.24792753]
[1754747281750,0.2818455,117010.0,117000.0,2.24792753]
[1754747282056,0.0874542,117010.0,117000.0,2.24792753]
[1754747282258,0.0874542,117010.0,117000.0,2.40183721]
[1754747283256,0.002,117010.0,117000.0,2.40183721]
[1754747286156,0.002,117010.0,117000.0,2.24792753]
[1754747290855,0.02614,117010.0,117000.0,2.24792753]
[1754747294167,0.002,117010.0,117000.0,2.24792753]
[1754747296567,0.002,117010.0,117000.0,2.4014472]
[1754747299567,0.002,117010.0,117000.0,2.24792753]
[1754747299768,0.002,117010.0,117000.0,2.40143911]
[1754747300573,0.002,117010.0,117000.0,2.24792753]
[1754747300766,0.002,117010.0,117000.0,2.40144047]
[1754747301468,0.002,117010.0,117000.0,2.24792753]
[1754747303976,0.002,117010.0,117000.0,2.44801012]
[1754747305072,0.002,117010.0,117000.0,2.24792753]
[1754747305474,0.02414,117020.0,117000.0,2.50430723]
[1754747305773,0.02414,117020.0,117010.0,1.26256854]
[1754747305969,0.109587,117020.0,117010.0,1.26256854]
[1754747306368,0.143797,117020.0,117010.0,1.26256854]
[1754747306671,0.05935,117020.0,117010.0,1.26256854]
[1754747306867,0.146797,117020.0,117010.0,1.26256854]
[1754747307167,0.12207,117020.0,117010.0,1.26256854]
[1754747307373,0.12007,117020.0,117010.0,1.26256854]
[1754747307572,0.2055169,117020.0,117010.0,1.26256854]
[1754747308276,0.2055169,117020.0,117010.0,1.26556854]
[1754747308974,0.2045169,117020.0,117010.0,1.26356854]
[1754747309163,0.2055169,117020.0,117010.0,1.26656854]
[1754747311685,0.2055169,117020.0,117010.0,0.60380452]
[1754747311873,0.2055169,117020.0,117010.0,1.26656854]
[1754747316273,0.2055169,117020.0,117010.0,1.11301832]
[1754747317482,0.1919769,117020.0,117010.0,1.11301832]
[1754747317682,0.10653,117020.0,117010.0,1.11301832]
[1754747318075,0.02514,117020.0,117010.0,1.11301832]
[1754747319386,0.02381,117020.0,117010.0,1.44440033]
[1754747321278,0.0900396,117030.0,117020.0,0.1244269]
[1754747321484,0.0900396,117030.0,117020.0,2.43711676]
[1754747321685,0.1227296,117030.0,117020.0,2.43711676]
[1754747323190,0.1455396,117030.0,117020.0,2.43711676]
[1754747323591,0.0910396,117030.0,117020.0,2.43911676]
[1754747324089,0.1138496,117030.0,117020.0,2.43911676]
[1754747324284,0.1148496,117030.0,117020.0,2.43911676]
[1754747325083,0.0920396,117030.0,117020.0,2.43911676]
[1754747325988,0.0920396,117030.0,117020.0,2.5084312]
[1754747326286,0.0066,117030.0,117020.0,2.5084312]
[1754747326991,0.0066,117030.0,117020.0,2.35464737]
[1754747327191,0.0066,117030.0,117020.0,3.53608737]
[1754747330793,0.0066,117030.0,117020.0,3.64367112]
[1754747331300,0.0920396,117030.0,117020.0,3.64367112]
[1754747331689,0.0066,117030.0,117020.0,3.64367112]
[1754747332193,0.0066,117030.0,117020.0,3.53608737]
[1754747332788,0.0920396,117030.0,117020.0,3.53608737]
[1754747333191,0.1148496,117030.0,117020.0,3.53608737]
[1754747335792,0.1148496,117030.0,117020.0,3.6898712]
[1754747337693,0.1148496,117030.0,117020.0,3.3290712]
[1754747337897,0.1148496,117030.0,117020.0,4.0506712]
[1754747338195,0.1148496,117030.0,117020.0,3.2467112]
[1754747338396,0.2105296,117030.0,117020.0,4.0239012]
[1754747338697,0.2105296,117030.0,117020.0,3.71528919]
[1754747338892,0.2105296,117030.0,117020.0,2.82988229]
[1754747339091,0.2105296,117030.0,117020.0,3.60703229]
[1754747340098,0.2105296,117030.0,117020.0,2.80707229]
[1754747340297,0.2105296,117030.0,117020.0,3.60683229]
[1754747341590,0.2105296,117030.0,117020.0,2.42539229]
[1754747342395,0.2105296,117030.0,117020.0,2.29441846]
[1754747343696,0.2105296,117030.0,117020.0,2.40201869]
[1754747344898,0.2105296,117030.0,117020.0,2.40181869]
[1754747346392,0.2105296,117030.0,117020.0,1.57944869]
[1754747346593,0.2105296,117030.0,117020.0,1.71624467]
[1754747346997,0.2105296,117030.0,117020.0,2.37900869]
[1754747347184,0.2105296,117030.0,117020.0,1.71624467]
[1754747347389,0.54191161,117030.0,117020.0,1.14046645]
[1754747347585,0.90271161,117030.0,117020.0,1.25668985]
[1754747347999,0.90271161,117030.0,117020.0,1.14907201]
[1754747348200,0.54191161,117030.0,117020.0,0.81769]
[1754747348494,0.54191161,117030.0,117020.0,1.25668985]
[1754747348997,0.90271161,117030.0,117020.0,1.25668985]
[1754747349189,0.2105296,117030.0,117020.0,1.25668985]
[1754747349393,0.2105296,117030.0,117020.0,0.92530784]
[1754747349699,0.54191161,117030.0,117020.0,1.25668985]
[1754747350704,0.2105296,117030.0,117020.0,1.58807186]
[1754747351189,0.2105296,117030.0,117020.0,1.61088186]
[1754747352302,0.2105296,117030.0,117020.0,0.94811784]
[1754747352501,0.2105296,117030.0,117020.0,1.27949985]
[1754747353505,0.2105296,117030.0,117020.0,1.64029985]
[1754747353705,0.2096696,117030.0,117020.0,1.61088186]
[1754747354201,0.2096696,117030.0,117020.0,1.30891784]
[1754747354398,0.2096696,117030.0,117020.0,1.97168186]
[1754747354704,0.2096696,117030.0,117020.0,1.61088186]
[1754747354906,0.2096696,117030.0,117020.0,1.86406402]
[1754747355105,0.0920396,117030.0,117020.0,2.28089293]
[1754747355298,0.0920396,117030.0,117020.0,2.05712876]
[1754747356201,0.1161096,117030.0,117020.0,2.05712876]
[1754747358404,0.2116696,117030.0,117020.0,1.69632876]
[1754747358706,0.2116696,117030.0,117020.0,2.05712876]
[1754747359006,0.2116696,117030.0,117020.0,1.97168186]
[1754747359407,0.2116696,117030.0,117020.0,1.30891784]
[1754747359707,0.2116696,117030.0,117020.0,1.61088186]
[1754747360103,0.54305161,117030.0,117020.0,0.92530784]
[1754747360302,0.54305161,117030.0,117020.0,1.24055985]
[1754747360909,0.54305161,117030.0,117020.0,1.26336985]
[1754747361103,0.54305161,117030.0,117020.0,0.94732784]
[1754747361610,0.54305161,117030.0,117020.0,1.27870985]
[1754747362111,0.2116696,117030.0,117020.0,1.27870985]
[1754747362302,0.54305161,117030.0,117020.0,1.27870985]
[1754747362707,0.2116696,117030.0,117020.0,1.38914442]
[1754747363107,0.2116696,117030.0,117020.0,0.94732784]
[1754747363309,0.2116696,117030.0,117020.0,1.38914442]
[1754747364005,0.2116696,117030.0,117020.0,0.94732784]
[1754747364213,0.2116696,117030.0,117020.0,1.38914442]
[1754747365108,0.2116696,117030.0,117020.0,0.94732784]
[1754747365308,0.2116696,117030.0,117020.0,1.38914442]
[1754747366215,0.2116696,117030.0,117020.0,0.94732784]
[1754747366611,0.2116696,117030.0,117020.0,1.38914442]
[1754747366916,0.2116696,117030.0,117020.0,0.94732784]
[1754747367408,0.2116696,117030.0,117020.0,1.38914442]
[1754747367713,0.2116696,117030.0,117020.0,0.94732784]
[1754747368117,0.2116696,117030.0,117020.0,1.38914442]
[1754747368515,0.2116696,117030.0,117020.0,0.94732784]
[1754747368815,0.2116696,117030.0,117020.0,1.38914442]
[1754747370118,0.2116696,117030.0,117020.0,0.94732784]
[1754747370320,0.2116696,117030.0,117020.0,1.38914442]
[1754747370713,0.2116696,117030.0,117020.0,0.94732784]
[1754747370914,0.2116696,117030.0,117020.0,1.38914442]
[1754747371117,0.0920396,117030.0,117020.0,1.38914442]
[1754747371319,0.1161096,117030.0,117020.0,1.38914442]
[1754747371615,0.0920396,117030.0,117020.0,1.83535102]
[1754747371814,0.0920396,117030.0,117020.0,1.72773318]
[1754747372214,0.0920396,117030.0,117020.0,1.2859166]
[1754747372715,0.0920396,117030.0,117020.0,1.72773318]
[1754747372917,0.0920396,117030.0,117020.0,1.79683581]
[1754747373520,0.0920396,117030.0,117020.0,1.9044132]
[1754747375313,0.0920396,117030.0,117020.0,1.37715002]
[1754747375621,0.0920396,117030.0,117020.0,1.8189666]
[1754747376624,0.0920396,117030.0,117020.0,1.37715002]
[1754747376822,0.2105196,117030.0,117020.0,1.37727002]
[1754747377026,0.2105196,117030.0,117020.0,1.8190866]
[1754747377513,0.2105196,117030.0,117020.0,1.37727002]
[1754747377712,0.1969096,117030.0,117020.0,0.95034397]
[1754747378017,0.2105196,117030.0,117020.0,0.94936739]
[1754747378214,0.2105196,117030.0,117020.0,0.14772739]
[1754747378610,0.2105196,117030.0,117020.0,0.94912739]
[1754747379519,0.2105196,117030.0,117020.0,1.39094397]
[1754747379820,0.2105196,117030.0,117020.0,0.94912739]
[1754747380024,0.2105196,117030.0,117020.0,1.39094397]
[1754747380222,0.2105196,117030.0,117020.0,0.94912739]
[1754747380922,0.2105196,117030.0,117020.0,1.39094397]
[1754747381115,0.2105196,117030.0,117020.0,0.94912739]
[1754747381316,1.01313618,117030.0,117020.0,0.92675739]
[1754747381518,0.5713196,117030.0,117020.0,0.01734]
[1754747381718,1.01313618,117030.0,117020.0,0.81922]
[1754747382114,0.5713196,117030.0,117020.0,0.01734]
[1754747382319,0.5713196,117030.0,117020.0,0.80368]
[1754747382518,0.5713196,117030.0,117020.0,0.81881]
[1754747382726,0.5713196,117030.0,117020.0,1.28343658]
[1754747382923,0.5667196,117030.0,117020.0,1.28343658]
[1754747383422,1.00853618,117030.0,117020.0,0.81881]
[1754747383624,1.00853618,117030.0,117020.0,1e-07]
[1754747383625,1.17944018,117030.0,117020.0,1e-07]
[1754747384024,0.2039337,117010.0,117000.0,0.01513]
[1754747384224,0.64575028,117010.0,117000.0,0.82713]
[1754747384423,0.5647337,117010.0,117000.0,0.82713]
[1754747384726,0.5647337,117010.0,117000.0,0.84994]
[1754747385119,0.5647337,117010.0,117000.0,0.82713]
[1754747385323,0.2039408,117000.0,116990.0,0.12270739]
[1754747385519,0.5647408,117000.0,116990.0,0.95859739]
[1754747385829,0.5647408,117000.0,116990.0,1.29283658]
[1754747386013,0.2039408,117000.0,116990.0,1.65363658]
[1754747386216,0.2039408,117000.0,116990.0,0.85102]
[1754747386421,0.2039408,117000.0,116990.0,1.29783658]
[1754747386823,0.2039408,117000.0,116990.0,0.85602]
[1754747387130,0.2039408,117000.0,116990.0,0.85302]
[1754747387325,0.2039408,117000.0,116990.0,1.29483658]
[1754747387915,0.1579908,117000.0,116990.0,0.85302]
[1754747388116,0.0864608,117000.0,116990.0,1.74210448]
[1754747388625,0.001,117000.0,116990.0,2.18392106]
[1754747388822,0.0854356,117040.0,117020.0,0.2950554]
[1754747389023,0.2657327,117050.0,117040.0,0.03873]
[1754747389224,0.1752527,117050.0,117040.0,0.84134658]
[1754747389421,0.1752527,117050.0,117040.0,0.92677798]
[1754747389828,0.1752527,117050.0,117040.0,0.93601058]
[1754747390330,0.1812527,117050.0,117040.0,0.93601058]
[1754747390531,0.1812527,117050.0,117040.0,0.494194]
[1754747390727,0.2135927,117050.0,117040.0,0.93601058]
[1754747390930,0.2836627,117050.0,117040.0,0.494194]
[1754747391135,0.2997327,117050.0,117040.0,0.4941942]
[1754747391527,0.2997327,117050.0,117040.0,0.93601078]
[1754747391928,0.2997327,117050.0,117040.0,0.4087626]
[1754747392136,0.3007327,117050.0,117040.0,0.9191164]
[1754747392423,0.2967327,117050.0,117040.0,1.0045478]
[1754747392731,0.2957327,117050.0,117040.0,1.0045478]
[1754747392937,0.2967327,117050.0,117040.0,1.0055478]
[1754747393137,0.2018527,117050.0,117040.0,1.0055478]
[1754747393336,0.1782527,117050.0,117040.0,1.0055478]
[1754747393533,0.1782527,117050.0,117040.0,0.47829982]
[1754747393742,0.2018527,117050.0,117040.0,0.9201164]
[1754747394142,0.2967327,117050.0,117040.0,0.9201164]